[Event "Titled Tuesday Blitz August 16 Early 2022"]
[White "Melikyan, Gnel"]
[Black "Adewumi, Tanitoluwa"]
[WhiteFideId "54109990"]
[BlackFideId "30966396"]
[WhiteElo "1772"]
[BlackElo "2302"]
[Result "1/2-1/2"]
[Round "09"]
[TimeControl "180+2"]
[Date "2022.08.18"]
[WhiteClock "0:00:00"]
[BlackClock "0:00:00"]

1. e4 {[%clk 0:00:00]}  c5 {[%clk 0:00:00]} 2. Nf3 {[%clk 0:00:00]}  e6 {[%clk 0:00:00]} 3. d4 {[%clk 0:00:00]}  cxd4 {[%clk 0:00:00]} 4. Nxd4 {[%clk 0:00:00]}  Nc6 {[%clk 0:00:00]} 5. Nc3 {[%clk 0:00:00]}  Qc7 {[%clk 0:00:00]} 6. Be3 {[%clk 0:00:00]}  a6 {[%clk 0:00:00]} 7. a3 {[%clk 0:00:00]}  Nf6 {[%clk 0:00:00]} 8. Be2 {[%clk 0:00:00]}  Be7 {[%clk 0:00:00]} 9. O-O {[%clk 0:00:00]}  d6 {[%clk 0:00:00]} 10. f4 {[%clk 0:00:00]}  O-O {[%clk 0:00:00]} 11. Kh1 {[%clk 0:00:00]}  Nxd4 {[%clk 0:00:00]} 12. Bxd4 {[%clk 0:00:00]}  b5 {[%clk 0:00:00]} 13. e5 {[%clk 0:00:00]}  dxe5 {[%clk 0:00:00]} 14. fxe5 {[%clk 0:00:00]}  Nd7 {[%clk 0:00:00]} 15. Bd3 {[%clk 0:00:00]}  Bb7 {[%clk 0:00:00]} 16. Qh5 {[%clk 0:00:00]}  g6 {[%clk 0:00:00]} 17. Qe2 {[%clk 0:00:00]}  Bc5 {[%clk 0:00:00]} 18. Bxc5 {[%clk 0:00:00]}  Qxc5 {[%clk 0:00:00]} 19. Rae1 {[%clk 0:00:00]}  Rad8 {[%clk 0:00:00]} 20. Be4 {[%clk 0:00:00]}  Bxe4 {[%clk 0:00:00]} 21. Nxe4 {[%clk 0:00:00]}  Qxe5 {[%clk 0:00:00]} 22. Nf6+ {[%clk 0:00:00]}  Qxf6 {[%clk 0:00:00]} 23. Rxf6 {[%clk 0:00:00]}  Nxf6 {[%clk 0:00:00]} 24. Rd1 {[%clk 0:00:00]}  Nd5 {[%clk 0:00:00]} 25. h3 {[%clk 0:00:00]}  Rc8 {[%clk 0:00:00]} 26. c3 {[%clk 0:00:00]}  Rc4 {[%clk 0:00:00]} 27. Qe5 {[%clk 0:00:00]}  Rfc8 {[%clk 0:00:00]} 28. Qd6 {[%clk 0:00:00]}  R4c6 {[%clk 0:00:00]} 29. Qe5 {[%clk 0:00:00]}  Rc4 {[%clk 0:00:00]} 30. Rf1 {[%clk 0:00:00]}  R8c7 {[%clk 0:00:00]} 31. Kh2 {[%clk 0:00:00]}  R4c6 {[%clk 0:00:00]} 32. h4 {[%clk 0:00:00]}  h5 {[%clk 0:00:00]} 33. Kh3 {[%clk 0:00:00]}  Kh7 {[%clk 0:00:00]} 34. Rf3 {[%clk 0:00:00]}  Rc4 {[%clk 0:00:00]} 35. Qd6 {[%clk 0:00:00]}  a5 {[%clk 0:00:00]} 36. Qf8 {[%clk 0:00:00]}  Rf4 {[%clk 0:00:00]} 37. Rxf4 {[%clk 0:00:00]}  Nxf4+ {[%clk 0:00:00]} 38. Kg3 {[%clk 0:00:00]}  Nd5 {[%clk 0:00:00]} 39. Kf3 {[%clk 0:00:00]}  b4 {[%clk 0:00:00]} 40. cxb4 {[%clk 0:00:00]}  axb4 {[%clk 0:00:00]} 41. axb4 {[%clk 0:00:00]}  Rb7 {[%clk 0:00:00]} 42. b5 {[%clk 0:00:00]}  Nb6 {[%clk 0:00:00]} 43. b3 {[%clk 0:00:00]}  Nd5 {[%clk 0:00:00]} 44. Ke4 {[%clk 0:00:00]}  Nf6+ {[%clk 0:00:00]} 45. Kd4 {[%clk 0:00:00]}  e5+ {[%clk 0:00:00]} 46. Kc4 {[%clk 0:00:00]}  Rc7+ {[%clk 0:00:00]} 47. Kb4 {[%clk 0:00:00]}  Nd5+ {[%clk 0:00:00]} 48. Ka3 {[%clk 0:00:00]}  Rb7 {[%clk 0:00:00]} 49. Qd8 {[%clk 0:00:00]}  Rxb5 {[%clk 0:00:00]} 50. Qd7 {[%clk 0:00:00]}  Ra5+ {[%clk 0:00:00]} 51. Kb2 {[%clk 0:00:00]}  Kg7 {[%clk 0:00:00]} 52. b4 {[%clk 0:00:00]}  Nxb4 {[%clk 0:00:00]} 53. Qc7 {[%clk 0:00:00]}  Rb5 {[%clk 0:00:00]} 54. Qd7 {[%clk 0:00:00]}  Rb6 {[%clk 0:00:00]} 55. Kc3 {[%clk 0:00:00]}  Nc6 {[%clk 0:00:00]} 56. Qc7 {[%clk 0:00:00]}  Rb1 {[%clk 0:00:00]} 57. Kc2 {[%clk 0:00:00]}  Rg1 {[%clk 0:00:00]} 58. Qxc6 {[%clk 0:00:00]}  Rh1 {[%clk 0:00:00]} 59. g3 {[%clk 0:00:00]}  Rh2+ {[%clk 0:00:00]} 60. Kd3 {[%clk 0:00:00]}  Ra2 {[%clk 0:00:00]} 61. Qd5 {[%clk 0:00:00]}  Ra3+ {[%clk 0:00:00]} 62. Ke4 {[%clk 0:00:00]}  Ra4+ {[%clk 0:00:00]} 63. Kxe5 {[%clk 0:00:00]}  Rg4 {[%clk 0:00:00]} 64. Qf3 {[%clk 0:00:00]}  Rc4 {[%clk 0:00:00]} 65. Kd5 {[%clk 0:00:00]}  Ra4 {[%clk 0:00:00]} 66. Kd6 {[%clk 0:00:00]}  Rg4 {[%clk 0:00:00]} 67. Ke7 {[%clk 0:00:00]}  Ra4 {[%clk 0:00:00]} 68. Qxf7+ {[%clk 0:00:00]}  Kh6 {[%clk 0:00:00]} 69. Qf8+ {[%clk 0:00:00]}  Kh7 {[%clk 0:00:00]} 70. Qf7+ {[%clk 0:00:00]}  Kh6 {[%clk 0:00:00]} 71. Kf8 {[%clk 0:00:00]}  Ra8+ {[%clk 0:00:00]} 72. Ke7 {[%clk 0:00:00]}  Ra7+ {[%clk 0:00:00]} 73. Kf6 {[%clk 0:00:00]}  Rxf7+ {[%clk 0:00:00]} 74. Kxf7 {[%clk 0:00:00]}  Kh7 {[%clk 0:00:00]} 75. Ke6 {[%clk 0:00:00]}  Kg7 {[%clk 0:00:00]} 76. Ke7 {[%clk 0:00:00]}  Kg8 {[%clk 0:00:00]} 77. Kf6 {[%clk 0:00:00]}  Kh7 {[%clk 0:00:00]} 78. Kf7 {[%clk 0:00:00]}  Kh6 {[%clk 0:00:00]} 79. Kg8 {[%clk 0:00:00]}  g5 {[%clk 0:00:00]} 80. Kf7 {[%clk 0:00:00]}  gxh4 {[%clk 0:00:00]} 81. gxh4 {[%clk 0:00:00]}  Kh7 {[%clk 0:00:00]} 82. Kf6 {[%clk 0:00:00]}  Kh6 {[%clk 0:00:00]} 83. Kf5 {[%clk 0:00:00]}  Kg7 {[%clk 0:00:00]} 84. Kg5 {[%clk 0:00:00]}  Kh7 {[%clk 0:00:00]} 85. Kxh5 {[%clk 0:00:00]}  Kh8 {[%clk 0:00:00]} 86. Kg5 {[%clk 0:00:00]}  Kg8 {[%clk 0:00:00]} 87. h5 {[%clk 0:00:00]}  Kh8 {[%clk 0:00:00]} 88. Kg6 {[%clk 0:00:00]}  Kg8 {[%clk 0:00:00]} 89. h6 {[%clk 0:00:00]}  Kh8 {[%clk 0:00:00]} 90. h7 {[%clk 0:00:00]} 1/2-1/2


[Site "https://www.chess.com"]

[Event "Titled Tuesday Blitz August 16 Early 2022"]
[White "Mendez Fortes, Eduardo Jesus"]
[Black "Leiva, Gianmarco"]
[WhiteFideId "3502376"]
[BlackFideId "3804399"]
[WhiteElo "2307"]
[BlackElo "2323"]
[Result "0-1"]
[Round "09"]
[TimeControl "180+1"]
[Date "2022.08.16"]
[WhiteClock "0:00:02"]
[BlackClock "0:00:06"]

1. e4 {[%clk 0:03:00]}  c5 {[%clk 0:02:39]} 2. Nf3 {[%clk 0:03:00]}  d6 {[%clk 0:02:39]} 3. d4 {[%clk 0:03:00]}  cxd4 {[%clk 0:02:40]} 4. Nxd4 {[%clk 0:03:01]}  Nf6 {[%clk 0:02:41]} 5. Nc3 {[%clk 0:03:02]}  a6 {[%clk 0:02:41]} 6. Bg5 {[%clk 0:03:02]}  e6 {[%clk 0:02:41]} 7. f4 {[%clk 0:03:01]}  Be7 {[%clk 0:02:42]} 8. Qf3 {[%clk 0:03:00]}  Qc7 {[%clk 0:02:43]} 9. O-O-O {[%clk 0:02:59]}  Nbd7 {[%clk 0:02:43]} 10. g4 {[%clk 0:02:59]}  h6 {[%clk 0:02:43]} 11. Bxf6 {[%clk 0:02:59]}  Bxf6 {[%clk 0:02:44]} 12. Kb1 {[%clk 0:02:58]}  Nb6 {[%clk 0:02:25]} 13. h4 {[%clk 0:02:57]}  Bd7 {[%clk 0:02:24]} 14. g5 {[%clk 0:02:52]}  Bxd4 {[%clk 0:02:24]} 15. Rxd4 {[%clk 0:02:53]}  O-O-O {[%clk 0:02:19]} 16. Rd2 {[%clk 0:02:19]}  Kb8 {[%clk 0:01:54]} 17. Rg1 {[%clk 0:02:07]}  hxg5 {[%clk 0:01:33]} 18. hxg5 {[%clk 0:02:06]}  Qc5 {[%clk 0:01:19]} 19. Qg3 {[%clk 0:01:59]}  Bc6 {[%clk 0:01:17]} 20. Bd3 {[%clk 0:01:34]}  Ka7 {[%clk 0:00:59]} 21. Rgd1 {[%clk 0:01:33]}  Rc8 {[%clk 0:00:42]} 22. f5 {[%clk 0:01:23]}  d5 {[%clk 0:00:31]} 23. exd5 {[%clk 0:01:17]}  exd5 {[%clk 0:00:25]} 24. Qf4 {[%clk 0:01:07]}  Rhe8 {[%clk 0:00:25]} 25. Ne2 {[%clk 0:01:01]}  Nc4 {[%clk 0:00:22]} 26. Bxc4 {[%clk 0:00:55]}  dxc4 {[%clk 0:00:23]} 27. Nc3 {[%clk 0:00:43]}  Re5 {[%clk 0:00:23]} 28. Rf2 {[%clk 0:00:39]}  Rce8 {[%clk 0:00:20]} 29. a3 {[%clk 0:00:38]}  b5 {[%clk 0:00:14]} 30. Rff1 {[%clk 0:00:38]}  f6 {[%clk 0:00:13]} 31. gxf6 {[%clk 0:00:36]}  gxf6 {[%clk 0:00:14]} 32. Qg4 {[%clk 0:00:33]}  R5e7 {[%clk 0:00:09]} 33. Qh4 {[%clk 0:00:30]}  Rf8 {[%clk 0:00:08]} 34. Qh6 {[%clk 0:00:27]}  Rb7 {[%clk 0:00:07]} 35. Na2 {[%clk 0:00:20]}  c3 {[%clk 0:00:07]} 36. b4 {[%clk 0:00:16]}  Qb6 {[%clk 0:00:08]} 37. Qh3 {[%clk 0:00:15]}  Be4 {[%clk 0:00:05]} 38. Nxc3 {[%clk 0:00:12]}  Bc6 {[%clk 0:00:03]} 39. Nd5 {[%clk 0:00:12]}  Bxd5 {[%clk 0:00:02]} 40. Rxd5 {[%clk 0:00:13]}  Rc7 {[%clk 0:00:03]} 41. Rfd1 {[%clk 0:00:13]}  Rfc8 {[%clk 0:00:03]} 42. Rd6 {[%clk 0:00:13]}  Qf2 {[%clk 0:00:04]} 43. R6d2 {[%clk 0:00:11]}  Qf4 {[%clk 0:00:04]} 44. Qd3 {[%clk 0:00:10]}  Qe5 {[%clk 0:00:04]} 45. Qd4+ {[%clk 0:00:09]}  Qxd4 {[%clk 0:00:05]} 46. Rxd4 {[%clk 0:00:10]}  Rxc2 {[%clk 0:00:06]} 47. Rd7+ {[%clk 0:00:10]}  Ka8 {[%clk 0:00:06]} 48. R7d6 {[%clk 0:00:08]}  R2c6 {[%clk 0:00:05]} 49. Rd7 {[%clk 0:00:08]}  Kb8 {[%clk 0:00:02]} 50. R1d2 {[%clk 0:00:08]}  Rc1+ {[%clk 0:00:02]} 51. Kb2 {[%clk 0:00:08]}  R1c6 {[%clk 0:00:03]} 52. Re7 {[%clk 0:00:08]}  R8c7 {[%clk 0:00:03]} 53. Re8+ {[%clk 0:00:08]}  Kb7 {[%clk 0:00:03]} 54. Ree2 {[%clk 0:00:08]}  Rc3 {[%clk 0:00:03]} 55. Rf2 {[%clk 0:00:07]}  Re3 {[%clk 0:00:04]} 56. Rc2 {[%clk 0:00:06]}  Rxc2+ {[%clk 0:00:03]} 57. Rxc2 {[%clk 0:00:05]}  Re5 {[%clk 0:00:03]} 58. Rf2 {[%clk 0:00:05]}  Kc6 {[%clk 0:00:04]} 59. Kc3 {[%clk 0:00:03]}  Kd5 {[%clk 0:00:04]} 60. Rd2+ {[%clk 0:00:02]}  Kc6 {[%clk 0:00:05]} 61. Rf2 {[%clk 0:00:02]}  Re3+ {[%clk 0:00:05]} 62. Kb2 {[%clk 0:00:02]}  Kd5 {[%clk 0:00:06]} 0-1


[Site "https://www.chess.com"]

[Event "Titled Tuesday Blitz August 16 Early 2022"]
[White "Namitbir Singh Walia"]
[Black "Sovetbekova, Nurai"]
[WhiteFideId "35071068"]
[BlackFideId "13801910"]
[WhiteElo "1664"]
[BlackElo "1646"]
[Result "1-0"]
[Round "09"]
[TimeControl "180+2"]
[Date "2022.08.18"]
[WhiteClock "0:00:00"]
[BlackClock "0:00:00"]

1. e4 {[%clk 0:00:00]}  c5 {[%clk 0:00:00]} 2. d4 {[%clk 0:00:00]}  cxd4 {[%clk 0:00:00]} 3. c3 {[%clk 0:00:00]}  Nf6 {[%clk 0:00:00]} 4. e5 {[%clk 0:00:00]}  Nd5 {[%clk 0:00:00]} 5. cxd4 {[%clk 0:00:00]}  d6 {[%clk 0:00:00]} 6. Nf3 {[%clk 0:00:00]}  Nc6 {[%clk 0:00:00]} 7. Nc3 {[%clk 0:00:00]}  Nxc3 {[%clk 0:00:00]} 8. bxc3 {[%clk 0:00:00]}  dxe5 {[%clk 0:00:00]} 9. d5 {[%clk 0:00:00]}  Nb8 {[%clk 0:00:00]} 10. Nxe5 {[%clk 0:00:00]}  Nd7 {[%clk 0:00:00]} 11. Bb5 {[%clk 0:00:00]}  a6 {[%clk 0:00:00]} 12. Ba4 {[%clk 0:00:00]}  Qa5 {[%clk 0:00:00]} 13. Nxd7 {[%clk 0:00:00]}  Bxd7 {[%clk 0:00:00]} 14. Bxd7+ {[%clk 0:00:00]}  Kxd7 {[%clk 0:00:00]} 15. O-O {[%clk 0:00:00]}  g6 {[%clk 0:00:00]} 16. Qf3 {[%clk 0:00:00]}  f5 {[%clk 0:00:00]} 17. d6 {[%clk 0:00:00]}  exd6 {[%clk 0:00:00]} 18. Qxb7+ {[%clk 0:00:00]}  Ke6 {[%clk 0:00:00]} 19. Re1+ {[%clk 0:00:00]}  Kf6 {[%clk 0:00:00]} 20. Qxa8 {[%clk 0:00:00]}  Qxc3 {[%clk 0:00:00]} 21. Qd8+ {[%clk 0:00:00]}  Kf7 {[%clk 0:00:00]} 22. Qe8+ {[%clk 0:00:00]}  Kg7 {[%clk 0:00:00]} 23. Rb1 {[%clk 0:00:00]}  d5 {[%clk 0:00:00]} 24. Rb7+ {[%clk 0:00:00]}  Kf6 {[%clk 0:00:00]} 25. Rf7# {[%clk 0:00:00]} 1-0


[Site "https://www.chess.com"]

[Event "Titled Tuesday Blitz August 16 Early 2022"]
[White "Pinheiro, Iung Alicio de O."]
[Black "Padmini, Rout"]
[WhiteFideId "2104350"]
[BlackFideId "5029295"]
[WhiteElo "2283"]
[BlackElo "2181"]
[Result "1-0"]
[Round "09"]
[TimeControl "180+2"]
[Date "2022.08.18"]
[WhiteClock "0:00:00"]
[BlackClock "0:00:00"]

1. e4 {[%clk 0:00:00]}  c5 {[%clk 0:00:00]} 2. Nf3 {[%clk 0:00:00]}  Nc6 {[%clk 0:00:00]} 3. c3 {[%clk 0:00:00]}  d5 {[%clk 0:00:00]} 4. exd5 {[%clk 0:00:00]}  Qxd5 {[%clk 0:00:00]} 5. d4 {[%clk 0:00:00]}  g6 {[%clk 0:00:00]} 6. Be3 {[%clk 0:00:00]}  Bg7 {[%clk 0:00:00]} 7. dxc5 {[%clk 0:00:00]}  Qxd1+ {[%clk 0:00:00]} 8. Kxd1 {[%clk 0:00:00]}  Nf6 {[%clk 0:00:00]} 9. Bb5 {[%clk 0:00:00]}  Ng4 {[%clk 0:00:00]} 10. Re1 {[%clk 0:00:00]}  Nxe3+ {[%clk 0:00:00]} 11. Rxe3 {[%clk 0:00:00]}  Bd7 {[%clk 0:00:00]} 12. Nbd2 {[%clk 0:00:00]}  O-O {[%clk 0:00:00]} 13. Bxc6 {[%clk 0:00:00]}  Bxc6 {[%clk 0:00:00]} 14. Rxe7 {[%clk 0:00:00]}  Rfd8 {[%clk 0:00:00]} 15. Kc2 {[%clk 0:00:00]}  Bf8 {[%clk 0:00:00]} 16. Re5 {[%clk 0:00:00]}  f6 {[%clk 0:00:00]} 17. Re2 {[%clk 0:00:00]}  Bxc5 {[%clk 0:00:00]} 18. Rae1 {[%clk 0:00:00]}  Kf7 {[%clk 0:00:00]} 19. Nb3 {[%clk 0:00:00]}  Bxf3 {[%clk 0:00:00]} 20. gxf3 {[%clk 0:00:00]}  Bd6 {[%clk 0:00:00]} 21. h3 {[%clk 0:00:00]}  Rd7 {[%clk 0:00:00]} 22. Re4 {[%clk 0:00:00]}  Rad8 {[%clk 0:00:00]} 23. Rh4 {[%clk 0:00:00]}  h5 {[%clk 0:00:00]} 24. Rd4 {[%clk 0:00:00]}  Be5 {[%clk 0:00:00]} 25. Ra4 {[%clk 0:00:00]}  b6 {[%clk 0:00:00]} 26. f4 {[%clk 0:00:00]}  Bb8 {[%clk 0:00:00]} 27. Rae4 {[%clk 0:00:00]}  f5 {[%clk 0:00:00]} 28. Rc4 {[%clk 0:00:00]}  Rc7 {[%clk 0:00:00]} 29. Rd4 {[%clk 0:00:00]}  Rxd4 {[%clk 0:00:00]} 30. Nxd4 {[%clk 0:00:00]}  Rd7 {[%clk 0:00:00]} 31. Ne2 {[%clk 0:00:00]}  Re7 {[%clk 0:00:00]} 32. Kd2 {[%clk 0:00:00]}  Bd6 {[%clk 0:00:00]} 33. b4 {[%clk 0:00:00]}  Re4 {[%clk 0:00:00]} 34. f3 {[%clk 0:00:00]}  Bxf4+ {[%clk 0:00:00]} 35. Kd1 {[%clk 0:00:00]}  Rc4 {[%clk 0:00:00]} 36. Kc2 {[%clk 0:00:00]}  Be5 {[%clk 0:00:00]} 37. f4 {[%clk 0:00:00]}  Bf6 {[%clk 0:00:00]} 38. Kd3 {[%clk 0:00:00]}  Re4 {[%clk 0:00:00]} 39. Rc1 {[%clk 0:00:00]}  Bh4 {[%clk 0:00:00]} 40. Rf1 {[%clk 0:00:00]}  Bd8 {[%clk 0:00:00]} 41. c4 {[%clk 0:00:00]}  Bc7 {[%clk 0:00:00]} 42. a3 {[%clk 0:00:00]}  Kf6 {[%clk 0:00:00]} 43. Nc3 {[%clk 0:00:00]}  Rxf4 {[%clk 0:00:00]} 44. Nd5+ {[%clk 0:00:00]}  Kg5 {[%clk 0:00:00]} 45. Rg1+ {[%clk 0:00:00]}  Kh4 {[%clk 0:00:00]} 46. Nxf4 {[%clk 0:00:00]}  Bxf4 {[%clk 0:00:00]} 47. Rxg6 {[%clk 0:00:00]}  Kxh3 {[%clk 0:00:00]} 48. Ke2 {[%clk 0:00:00]}  h4 {[%clk 0:00:00]} 49. Kf3 {[%clk 0:00:00]}  Bg3 {[%clk 0:00:00]} 50. c5 {[%clk 0:00:00]}  bxc5 {[%clk 0:00:00]} 51. bxc5 {[%clk 0:00:00]}  Kh2 {[%clk 0:00:00]} 52. c6 {[%clk 0:00:00]}  Kg1 {[%clk 0:00:00]} 53. Rxg3+ {[%clk 0:00:00]}  hxg3 {[%clk 0:00:00]} 54. Kxg3 {[%clk 0:00:00]} 1-0


[Site "https://www.chess.com"]

[Event "Titled Tuesday Blitz August 16 Early 2022"]
[White "Przybylski, Wojciech"]
[Black "Gabdrakhmanov, Azat"]
[WhiteFideId "1117599"]
[BlackFideId "34189197"]
[WhiteElo "2133"]
[BlackElo "2293"]
[Result "1-0"]
[Round "09"]
[TimeControl "180+1"]
[Date "2022.08.16"]
[WhiteClock "0:01:21"]
[BlackClock "0:01:41"]

1. e4 {[%clk 0:02:59]}  c5 {[%clk 0:02:59]} 2. Nf3 {[%clk 0:02:59]}  e6 {[%clk 0:03:00]} 3. b3 {[%clk 0:02:56]}  d6 {[%clk 0:03:00]} 4. d4 {[%clk 0:02:54]}  cxd4 {[%clk 0:02:59]} 5. Nxd4 {[%clk 0:02:54]}  Nf6 {[%clk 0:02:59]} 6. Nd2 {[%clk 0:02:53]}  Be7 {[%clk 0:02:56]} 7. Bb2 {[%clk 0:02:53]}  Nc6 {[%clk 0:02:51]} 8. Nxc6 {[%clk 0:02:50]}  bxc6 {[%clk 0:02:50]} 9. Bd3 {[%clk 0:02:50]}  e5 {[%clk 0:02:50]} 10. Qe2 {[%clk 0:02:44]}  O-O {[%clk 0:02:47]} 11. O-O {[%clk 0:02:42]}  Bg4 {[%clk 0:02:46]} 12. f3 {[%clk 0:02:42]}  Be6 {[%clk 0:02:47]} 13. Rad1 {[%clk 0:02:40]}  Nh5 {[%clk 0:02:46]} 14. g3 {[%clk 0:02:38]}  Nf6 {[%clk 0:02:33]} 15. c4 {[%clk 0:02:35]}  Qc7 {[%clk 0:02:31]} 16. Nb1 {[%clk 0:02:23]}  Rfe8 {[%clk 0:02:30]} 17. Nc3 {[%clk 0:02:22]}  Nd7 {[%clk 0:02:29]} 18. Bb1 {[%clk 0:02:19]}  Bh3 {[%clk 0:02:28]} 19. Rfe1 {[%clk 0:02:15]}  Be6 {[%clk 0:02:22]} 20. Rd2 {[%clk 0:02:12]}  Nc5 {[%clk 0:02:21]} 21. f4 {[%clk 0:02:03]}  exf4 {[%clk 0:02:15]} 22. gxf4 {[%clk 0:02:02]}  Bh4 {[%clk 0:02:14]} 23. Red1 {[%clk 0:01:55]}  Rad8 {[%clk 0:02:10]} 24. Qh5 {[%clk 0:01:53]}  Bf6 {[%clk 0:02:05]} 25. Rg2 {[%clk 0:01:29]}  Qe7 {[%clk 0:01:54]} 26. e5 {[%clk 0:01:21]}  dxe5 {[%clk 0:01:50]} 27. Qxh7+ {[%clk 0:01:20]}  Kf8 {[%clk 0:01:41]} 28. Qh8# {[%clk 0:01:21]} 1-0


[Site "https://www.chess.com"]

[Event "Titled Tuesday Blitz August 16 Early 2022"]
[White "Quirke, Jeffrey"]
[Black "Gonzalez Vega, Alejandro"]
[WhiteFideId "2013029"]
[BlackFideId "3510042"]
[WhiteElo "2048"]
[BlackElo "2092"]
[Result "1-0"]
[Round "09"]
[TimeControl "180+2"]
[Date "2022.08.18"]
[WhiteClock "0:00:00"]
[BlackClock "0:00:00"]

1. d4 {[%clk 0:00:00]}  d5 {[%clk 0:00:00]} 2. c4 {[%clk 0:00:00]}  e6 {[%clk 0:00:00]} 3. Nc3 {[%clk 0:00:00]}  Nf6 {[%clk 0:00:00]} 4. cxd5 {[%clk 0:00:00]}  exd5 {[%clk 0:00:00]} 5. Bg5 {[%clk 0:00:00]}  c6 {[%clk 0:00:00]} 6. e3 {[%clk 0:00:00]}  Be7 {[%clk 0:00:00]} 7. Bd3 {[%clk 0:00:00]}  O-O {[%clk 0:00:00]} 8. Qc2 {[%clk 0:00:00]}  h6 {[%clk 0:00:00]} 9. Bh4 {[%clk 0:00:00]}  Re8 {[%clk 0:00:00]} 10. Nf3 {[%clk 0:00:00]}  Nbd7 {[%clk 0:00:00]} 11. O-O {[%clk 0:00:00]}  Nf8 {[%clk 0:00:00]} 12. Rab1 {[%clk 0:00:00]}  a5 {[%clk 0:00:00]} 13. Rbe1 {[%clk 0:00:00]}  Be6 {[%clk 0:00:00]} 14. Ne5 {[%clk 0:00:00]}  Rc8 {[%clk 0:00:00]} 15. f4 {[%clk 0:00:00]}  N6d7 {[%clk 0:00:00]} 16. Bxe7 {[%clk 0:00:00]}  Rxe7 {[%clk 0:00:00]} 17. Na4 {[%clk 0:00:00]}  Nxe5 {[%clk 0:00:00]} 18. fxe5 {[%clk 0:00:00]}  b6 {[%clk 0:00:00]} 19. Rc1 {[%clk 0:00:00]}  Re8 {[%clk 0:00:00]} 20. Qb3 {[%clk 0:00:00]}  b5 {[%clk 0:00:00]} 21. Nc5 {[%clk 0:00:00]}  a4 {[%clk 0:00:00]} 22. Qb4 {[%clk 0:00:00]}  Qg5 {[%clk 0:00:00]} 23. Rce1 {[%clk 0:00:00]}  Bh3 {[%clk 0:00:00]} 24. Rf2 {[%clk 0:00:00]}  Ne6 {[%clk 0:00:00]} 25. Nxe6 {[%clk 0:00:00]}  Rxe6 {[%clk 0:00:00]} 26. Kh1 {[%clk 0:00:00]}  Bg4 {[%clk 0:00:00]} 27. Qd2 {[%clk 0:00:00]}  Rce8 {[%clk 0:00:00]} 28. Ref1 {[%clk 0:00:00]}  Qh4 {[%clk 0:00:00]} 29. Rxf7 {[%clk 0:00:00]}  Bh5 {[%clk 0:00:00]} 30. R7f2 {[%clk 0:00:00]}  Qg5 {[%clk 0:00:00]} 31. Rf4 {[%clk 0:00:00]}  Bg6 {[%clk 0:00:00]} 32. Bxg6 {[%clk 0:00:00]}  Rxg6 {[%clk 0:00:00]} 33. Qf2 {[%clk 0:00:00]}  Kh7 {[%clk 0:00:00]} 34. g3 {[%clk 0:00:00]}  Ree6 {[%clk 0:00:00]} 35. Rf8 {[%clk 0:00:00]}  Qg4 {[%clk 0:00:00]} 36. Qf4 {[%clk 0:00:00]}  Qe2 {[%clk 0:00:00]} 37. Rf2 {[%clk 0:00:00]}  Rg5 {[%clk 0:00:00]} 38. Rxe2 {[%clk 0:00:00]} 1-0


[Site "https://www.chess.com"]

[Event "Titled Tuesday Blitz August 16 Early 2022"]
[White "Quispe Santacruz, Javier"]
[Black "Kovacevic, Radmila"]
[WhiteFideId "3800920"]
[BlackFideId "933171"]
[WhiteElo "1929"]
[BlackElo "2157"]
[Result "0-1"]
[Round "09"]
[TimeControl "180+2"]
[Date "2022.08.18"]
[WhiteClock "0:00:00"]
[BlackClock "0:00:00"]

1. d4 {[%clk 0:00:00]}  e5 {[%clk 0:00:00]} 2. e4 {[%clk 0:00:00]}  exd4 {[%clk 0:00:00]} 3. Nf3 {[%clk 0:00:00]}  Nc6 {[%clk 0:00:00]} 4. Bc4 {[%clk 0:00:00]}  Bc5 {[%clk 0:00:00]} 5. c3 {[%clk 0:00:00]}  dxc3 {[%clk 0:00:00]} 6. Bxf7+ {[%clk 0:00:00]}  Kxf7 {[%clk 0:00:00]} 7. Qd5+ {[%clk 0:00:00]}  Kf8 {[%clk 0:00:00]} 8. Qxc5+ {[%clk 0:00:00]}  d6 {[%clk 0:00:00]} 9. Qxc3 {[%clk 0:00:00]}  Nf6 {[%clk 0:00:00]} 10. Bg5 {[%clk 0:00:00]}  Nxe4 {[%clk 0:00:00]} 11. Bxd8 {[%clk 0:00:00]}  Nxc3 {[%clk 0:00:00]} 12. Bxc7 {[%clk 0:00:00]}  Nb5 {[%clk 0:00:00]} 13. Bxd6+ {[%clk 0:00:00]}  Nxd6 {[%clk 0:00:00]} 14. Nc3 {[%clk 0:00:00]}  Bg4 {[%clk 0:00:00]} 15. Nd2 {[%clk 0:00:00]}  Re8+ {[%clk 0:00:00]} 16. Kf1 {[%clk 0:00:00]}  Nd4 {[%clk 0:00:00]} 17. Rc1 {[%clk 0:00:00]}  Bf5 {[%clk 0:00:00]} 18. f3 {[%clk 0:00:00]}  Kf7 {[%clk 0:00:00]} 19. Kf2 {[%clk 0:00:00]}  a6 {[%clk 0:00:00]} 20. h4 {[%clk 0:00:00]}  Bd3 {[%clk 0:00:00]} 21. h5 {[%clk 0:00:00]}  b5 {[%clk 0:00:00]} 22. a3 {[%clk 0:00:00]}  Re5 {[%clk 0:00:00]} 23. Rce1 {[%clk 0:00:00]}  Rhe8 {[%clk 0:00:00]} 24. Rxe5 {[%clk 0:00:00]}  Rxe5 {[%clk 0:00:00]} 25. Rh4 {[%clk 0:00:00]}  N4f5 {[%clk 0:00:00]} 26. Rf4 {[%clk 0:00:00]}  Ke6 {[%clk 0:00:00]} 27. g4 {[%clk 0:00:00]}  Ne7 {[%clk 0:00:00]} 28. Rf8 {[%clk 0:00:00]}  Nd5 {[%clk 0:00:00]} 29. Nxd5 {[%clk 0:00:00]}  Kxd5 {[%clk 0:00:00]} 30. Rg8 {[%clk 0:00:00]}  Re2+ {[%clk 0:00:00]} 31. Kg3 {[%clk 0:00:00]}  Rxd2 {[%clk 0:00:00]} 32. Rxg7 {[%clk 0:00:00]}  Rxb2 {[%clk 0:00:00]} 33. g5 {[%clk 0:00:00]}  Rb3 {[%clk 0:00:00]} 34. g6 {[%clk 0:00:00]}  hxg6 {[%clk 0:00:00]} 35. h6 {[%clk 0:00:00]}  Be4 {[%clk 0:00:00]} 36. h7 {[%clk 0:00:00]}  Rxf3+ {[%clk 0:00:00]} 37. Kh2 {[%clk 0:00:00]}  Rf5 {[%clk 0:00:00]} 38. Kg3 {[%clk 0:00:00]}  Rh5 {[%clk 0:00:00]} 39. Kg4 {[%clk 0:00:00]}  Bf5+ {[%clk 0:00:00]} 0-1


[Site "https://www.chess.com"]